[Event "Early-Titled-Tuesday-Blitz-November-28-2023"]
[Site "Chess.com"]
[Date "2023.11.28"]
[Round "9"]
[White "bubeliang"]
[Black "falzehope0"]
[Result "1-0"]
[WhiteElo "2650"]
[BlackElo "2390"]
[TimeControl "180+1"]
[EndTime "9:52:01 PST"]
[Termination "bubeliang won by resignation"]

1. e4 {[%clk 0:03:00.9]} 1... d5 {[%clk 0:02:54]} 2. exd5 {[%clk 0:03:01.8]}
2... Nf6 {[%clk 0:02:53.8]} 3. Bb5+ {[%clk 0:02:58.5]} 3... Nbd7 {[%clk
0:02:53.4]} 4. Nf3 {[%clk 0:02:57]} 4... a6 {[%clk 0:02:51.4]} 5. Bc4 {[%clk
0:02:48.8]} 5... b5 {[%clk 0:02:50.7]} 6. Bb3 {[%clk 0:02:49.1]} 6... Nc5 {[%clk
0:02:50.5]} 7. O-O {[%clk 0:02:46.6]} 7... Nxb3 {[%clk 0:02:40.9]} 8. axb3
{[%clk 0:02:47.5]} 8... Bb7 {[%clk 0:02:40.9]} 9. c4 {[%clk 0:02:47.3]} 9... g6
{[%clk 0:02:38.1]} 10. Nc3 {[%clk 0:02:44.7]} 10... Bg7 {[%clk 0:02:37.3]} 11.
d4 {[%clk 0:02:43.7]} 11... O-O {[%clk 0:02:34.4]} 12. Be3 {[%clk 0:02:43.9]}
12... Ng4 {[%clk 0:02:22.2]} 13. Qd2 {[%clk 0:02:41.4]} 13... Nxe3 {[%clk
0:02:20.1]} 14. fxe3 {[%clk 0:02:42.3]} 14... Qd7 {[%clk 0:01:56.5]} 15. e4
{[%clk 0:02:40.6]} 15... b4 {[%clk 0:01:50.6]} 16. Ne2 {[%clk 0:02:40.3]} 16...
a5 {[%clk 0:01:50.5]} 17. Ne5 {[%clk 0:02:40.1]} 17... Qd8 {[%clk 0:01:39.4]}
18. Nd3 {[%clk 0:02:37.2]} 18... e6 {[%clk 0:01:30.8]} 19. Nc5 {[%clk
0:02:35.8]} 19... Bc8 {[%clk 0:01:27]} 20. Nf4 {[%clk 0:02:30.8]} 20... e5
{[%clk 0:01:24.2]} 21. dxe5 {[%clk 0:02:19.4]} 21... Bxe5 {[%clk 0:01:25.1]} 22.
Ncd3 {[%clk 0:02:20.2]} 22... Bd4+ {[%clk 0:01:17.2]} 23. Kh1 {[%clk 0:02:09.7]}
23... Qg5 {[%clk 0:01:15.8]} 24. Rae1 {[%clk 0:01:59]} 24... f5 {[%clk
0:01:10.3]} 25. e5 {[%clk 0:01:56.5]} 25... Bb7 {[%clk 0:01:03.1]} 26. Nxb4
{[%clk 0:01:37.8]} 26... Bb6 {[%clk 0:00:23.2]} 27. Nbd3 {[%clk 0:01:30.7]}
27... Rae8 {[%clk 0:00:22]} 28. c5 {[%clk 0:01:26.1]} 28... Ba7 {[%clk
0:00:21.9]} 29. Qxa5 {[%clk 0:01:25]} 29... Ra8 {[%clk 0:00:14.9]} 30. Qb5
{[%clk 0:01:15.6]} 30... Rfb8 {[%clk 0:00:12.5]} 31. Qd7 {[%clk 0:01:14.3]}
31... Ba6 {[%clk 0:00:10.2]} 32. Qe6+ {[%clk 0:01:09.2]} 32... Kh8 {[%clk
0:00:09]} 33. Qxa6 {[%clk 0:01:10.1]} 33... Bxc5 {[%clk 0:00:07.6]} 34. Qc6
{[%clk 0:01:02.4]} 34... Bb6 {[%clk 0:00:07.2]} 35. d6 {[%clk 0:01:01]} 35...
cxd6 {[%clk 0:00:06.5]} 36. exd6 {[%clk 0:01:01.9]} 36... Qf6 {[%clk 0:00:06.3]}
37. Nd5 {[%clk 0:00:54]} 37... Qg7 {[%clk 0:00:05.3]} 38. Nxb6 {[%clk
0:00:51.3]} 38... Ra6 {[%clk 0:00:04.6]} 39. Re8+ {[%clk 0:00:51.3]} 39... Rxe8
{[%clk 0:00:03.4]} 40. Qxe8+ {[%clk 0:00:52.2]} 40... Qg8 {[%clk 0:00:03.9]} 41.
Qxg8+ {[%clk 0:00:52.3]} 41... Kxg8 {[%clk 0:00:04.2]} 42. d7 {[%clk 0:00:53.2]}
42... Rxb6 {[%clk 0:00:02.7]} 43. d8=Q+ {[%clk 0:00:53.2]} 43... Kg7 {[%clk
0:00:03.6]} 44. Qxb6 {[%clk 0:00:53.4]} 44... Kh6 {[%clk 0:00:04.3]} 45. Qe3+
{[%clk 0:00:54]} 45... Kg7 {[%clk 0:00:04.6]} 46. g4 {[%clk 0:00:54.4]} 46... h5
{[%clk 0:00:04.2]} 47. gxf5 {[%clk 0:00:54.8]} 47... gxf5 {[%clk 0:00:03.5]} 48.
Rxf5 {[%clk 0:00:55.7]} 48... h4 {[%clk 0:00:03.5]} 49. Qg5+ {[%clk 0:00:56.3]}
49... Kh8 {[%clk 0:00:03.5]} 50. Kg1 {[%clk 0:00:57.2]} 50... Kh7 {[%clk
0:00:03.7]} 51. Kf1 {[%clk 0:00:58.1]} 51... h3 {[%clk 0:00:03.8]} 52. Ke1
{[%clk 0:00:59]} 52... Kh8 {[%clk 0:00:04.1]} 53. Kd1 {[%clk 0:00:59.9]} 53...
Kh7 {[%clk 0:00:04.5]} 54. Kc1 {[%clk 0:01:00.8]} 54... Kh8 {[%clk 0:00:05]} 55.
Kb1 {[%clk 0:01:01.7]} 55... Kh7 {[%clk 0:00:05.6]} 56. Ka1 {[%clk 0:01:02.6]}
56... Kh8 {[%clk 0:00:06.1]} 57. Ka2 {[%clk 0:01:03.5]} 57... Kh7 {[%clk
0:00:06.6]} 58. Ka3 {[%clk 0:01:04.4]} 58... Kh8 {[%clk 0:00:07.1]} 59. Ka4
{[%clk 0:01:05.3]} 59... Kh7 {[%clk 0:00:07.6]} 60. Kb4 {[%clk 0:01:06.2]} 60...
Kh8 {[%clk 0:00:08.1]} 61. Kc4 {[%clk 0:01:07.1]} 61... Kh7 {[%clk 0:00:08.7]}
62. Kd4 {[%clk 0:01:08]} 62... Kh8 {[%clk 0:00:09.2]} 63. Ke4 {[%clk 0:01:08.9]}
63... Kh7 {[%clk 0:00:09.7]} 64. Ke3 {[%clk 0:01:09.8]} 64... Kh8 {[%clk
0:00:10]} 65. Kf3 {[%clk 0:01:10.7]} 65... Kh7 {[%clk 0:00:10.4]} 66. Kg3 {[%clk
0:01:11.6]} 66... Kh8 {[%clk 0:00:10.9]} 67. Kxh3 {[%clk 0:01:12.5]} 67... Kh7
{[%clk 0:00:11.3]} 68. Kg4 {[%clk 0:01:13.4]} 68... Kh8 {[%clk 0:00:11.7]} 69.
Kf4 {[%clk 0:01:14.3]} 69... Kh7 {[%clk 0:00:11.9]} 70. Ke5 {[%clk 0:01:15.2]}
70... Kh8 {[%clk 0:00:12.3]} 71. Kd5 {[%clk 0:01:16.1]} 71... Kh7 {[%clk
0:00:12.7]} 72. Kd6 {[%clk 0:01:17]} 72... Kh8 {[%clk 0:00:13.2]} 73. Kc6 {[%clk
0:01:17.9]} 73... Kh7 {[%clk 0:00:13.7]} 74. Kb6 {[%clk 0:01:18.8]} 74... Kh8
{[%clk 0:00:14.1]} 75. Ka6 {[%clk 0:01:19.7]} 75... Kh7 {[%clk 0:00:14.6]} 76.
Ka5 {[%clk 0:01:20.6]} 76... Kh8 {[%clk 0:00:15]} 77. Ka4 {[%clk 0:01:21.5]}
77... Kh7 {[%clk 0:00:15.5]} 78. Ka3 {[%clk 0:01:22.4]} 78... Kh8 {[%clk
0:00:16]} 79. Ka2 {[%clk 0:01:23.3]} 79... Kh7 {[%clk 0:00:16.5]} 80. Ka1 {[%clk
0:01:24.2]} 80... Kh8 {[%clk 0:00:17]} 81. Kb1 {[%clk 0:01:25.1]} 81... Kh7
{[%clk 0:00:17.8]} 82. Kc1 {[%clk 0:01:26]} 82... Kh8 {[%clk 0:00:18.6]} 83. b4
{[%clk 0:01:26.9]} 83... Kh7 {[%clk 0:00:19.5]} 84. Kc2 {[%clk 0:01:27.8]} 84...
Kh8 {[%clk 0:00:20.2]} 85. Kc3 {[%clk 0:01:28.7]} 85... Kh7 {[%clk 0:00:21]} 86.
Kc4 {[%clk 0:01:29.6]} 86... Kh8 {[%clk 0:00:21.9]} 87. b3 {[%clk 0:01:30.5]}
87... Kh7 {[%clk 0:00:22.8]} 88. Kd4 {[%clk 0:01:31.4]} 88... Kh8 {[%clk
0:00:23.7]} 89. Ke3 {[%clk 0:01:32.3]} 89... Kh7 {[%clk 0:00:24.6]} 90. Ke2
{[%clk 0:01:33.2]} 90... Kh8 {[%clk 0:00:25.5]} 91. Kf2 {[%clk 0:01:34.1]} 91...
Kh7 {[%clk 0:00:26.4]} 92. h3 {[%clk 0:01:35]} 92... Kh8 {[%clk 0:00:27.3]} 93.
Kf3 {[%clk 0:01:35.9]} 93... Kh7 {[%clk 0:00:27.7]} 94. Ke4 {[%clk 0:01:36.8]}
94... Kh8 {[%clk 0:00:28.3]} 95. Kd5 {[%clk 0:01:37.7]} 95... Kh7 {[%clk
0:00:28.8]} 96. Kd6 {[%clk 0:01:38.6]} 96... Kh8 {[%clk 0:00:29.3]} 97. Kd7
{[%clk 0:01:39.5]} 97... Kh7 {[%clk 0:00:29.8]} 98. Kc7 {[%clk 0:01:40.4]} 98...
Kh8 {[%clk 0:00:29.5]} 99. Kc8 {[%clk 0:01:41.3]} 99... Kh7 {[%clk 0:00:30.1]}
100. Rf4 {[%clk 0:01:42.2]} 1-0

[Event "Early-Titled-Tuesday-Blitz-November-28-2023"]
[Site "Chess.com"]
[Date "2023.11.28"]
[Round "9"]
[White "Shivananda1964"]
[Black "Chemim21"]
[Result "1-0"]
[WhiteElo "2399"]
[BlackElo "2220"]
[TimeControl "180+1"]
[EndTime "9:52:05 PST"]
[Termination "Shivananda1964 won on time"]

1. d4 {[%clk 0:03:00.9]} 1... Nf6 {[%clk 0:02:58.3]} 2. Nf3 {[%clk 0:02:56.9]}
2... e6 {[%clk 0:02:58.2]} 3. g3 {[%clk 0:02:55.9]} 3... d5 {[%clk 0:02:56.8]}
4. Bg2 {[%clk 0:02:56.3]} 4... Be7 {[%clk 0:02:55]} 5. O-O {[%clk 0:02:56.9]}
5... O-O {[%clk 0:02:55]} 6. c4 {[%clk 0:02:56.7]} 6... c6 {[%clk 0:02:51.7]} 7.
b3 {[%clk 0:02:55.1]} 7... Nbd7 {[%clk 0:02:51.3]} 8. Bb2 {[%clk 0:02:53.3]}
8... b6 {[%clk 0:02:51.8]} 9. Nbd2 {[%clk 0:02:50.2]} 9... Bb7 {[%clk
0:02:48.4]} 10. Qc2 {[%clk 0:02:50.4]} 10... Rc8 {[%clk 0:02:41.2]} 11. Rfd1
{[%clk 0:02:49]} 11... c5 {[%clk 0:02:31.9]} 12. Rac1 {[%clk 0:02:34.6]} 12...
cxd4 {[%clk 0:02:30.2]} 13. Nxd4 {[%clk 0:02:32.7]} 13... Qc7 {[%clk 0:02:15.1]}
14. Qb1 {[%clk 0:02:25.1]} 14... Qb8 {[%clk 0:02:10.2]} 15. e4 {[%clk
0:02:18.9]} 15... dxe4 {[%clk 0:02:03.7]} 16. Nxe4 {[%clk 0:02:18.2]} 16... Nxe4
{[%clk 0:02:03.8]} 17. Bxe4 {[%clk 0:02:16.5]} 17... Bxe4 {[%clk 0:02:01.3]} 18.
Qxe4 {[%clk 0:02:16.4]} 18... Nf6 {[%clk 0:01:59.4]} 19. Qf3 {[%clk 0:02:00.2]}
19... Rfd8 {[%clk 0:01:55.2]} 20. Nc6 {[%clk 0:01:56.5]} 20... Rxd1+ {[%clk
0:01:52.2]} 21. Rxd1 {[%clk 0:01:56.3]} 21... Qc7 {[%clk 0:01:41.7]} 22. Nxe7+
{[%clk 0:01:41.6]} 22... Qxe7 {[%clk 0:01:40.4]} 23. Bxf6 {[%clk 0:01:41.4]}
23... gxf6 {[%clk 0:01:26.7]} 24. Qg4+ {[%clk 0:01:27.2]} 24... Kf8 {[%clk
0:01:22.4]} 25. Qh5 {[%clk 0:01:23.9]} 25... Kg8 {[%clk 0:01:13.8]} 26. Rd4
{[%clk 0:01:20.6]} 26... f5 {[%clk 0:01:13.7]} 27. Rh4 {[%clk 0:01:16.3]} 27...
f6 {[%clk 0:01:10.5]} 28. Rd4 {[%clk 0:01:05]} 28... Rd8 {[%clk 0:01:05.9]} 29.
Qd1 {[%clk 0:00:59.6]} 29... Rxd4 {[%clk 0:01:03.4]} 30. Qxd4 {[%clk 0:00:59.3]}
30... Kf7 {[%clk 0:01:02.9]} 31. Qc3 {[%clk 0:00:49.3]} 31... Qb7 {[%clk
0:00:56.4]} 32. b4 {[%clk 0:00:47.7]} 32... Qe4 {[%clk 0:00:55.8]} 33. c5 {[%clk
0:00:45.1]} 33... bxc5 {[%clk 0:00:52.9]} 34. bxc5 {[%clk 0:00:44.5]} 34... Qc6
{[%clk 0:00:39.8]} 35. Qc4 {[%clk 0:00:30.7]} 35... Ke7 {[%clk 0:00:38.5]} 36.
h4 {[%clk 0:00:29.8]} 36... Qd5 {[%clk 0:00:32.9]} 37. Qb4 {[%clk 0:00:21]}
37... Qd1+ {[%clk 0:00:31.5]} 38. Kg2 {[%clk 0:00:20.9]} 38... Qd5+ {[%clk
0:00:32.1]} 39. Kh2 {[%clk 0:00:20.7]} 39... Kd7 {[%clk 0:00:27.1]} 40. Qa4+
{[%clk 0:00:18.3]} 40... Kc8 {[%clk 0:00:20]} 41. Qxa7 {[%clk 0:00:17.3]} 41...
Qf3 {[%clk 0:00:15.7]} 42. Qa6+ {[%clk 0:00:16]} 42... Kc7 {[%clk 0:00:14.8]}
43. Qb6+ {[%clk 0:00:16.1]} 43... Kc8 {[%clk 0:00:12.1]} 44. c6 {[%clk
0:00:16.1]} 44... Qd5 {[%clk 0:00:01.8]} 45. Qb7+ {[%clk 0:00:14.8]} 45... Kd8
{[%clk 0:00:01.8]} 46. c7+ {[%clk 0:00:15.2]} 1-0

[Event "Early-Titled-Tuesday-Blitz-November-28-2023"]
[Site "Chess.com"]
[Date "2023.11.28"]
[Round "9"]
[White "suyu28"]
[Black "LoveUMore"]
[Result "1-0"]
[WhiteElo "2739"]
[BlackElo "2566"]
[TimeControl "180+1"]
[EndTime "9:52:06 PST"]
[Termination "suyu28 won on time"]

1. e4 {[%clk 0:02:58]} 1... Nc6 {[%clk 0:02:59.6]} 2. Nf3 {[%clk 0:02:57.5]}
2... d6 {[%clk 0:02:59.8]} 3. d4 {[%clk 0:02:57.2]} 3... Nf6 {[%clk 0:03:00.3]}
4. Nc3 {[%clk 0:02:56.7]} 4... Bg4 {[%clk 0:03:00.6]} 5. Be2 {[%clk 0:02:56.3]}
5... e5 {[%clk 0:03:00.5]} 6. Be3 {[%clk 0:02:49.3]} 6... Be7 {[%clk 0:02:57.8]}
7. d5 {[%clk 0:02:49.1]} 7... Nb8 {[%clk 0:02:57.9]} 8. h3 {[%clk 0:02:48]} 8...
Bh5 {[%clk 0:02:57.9]} 9. g4 {[%clk 0:02:47.1]} 9... Bg6 {[%clk 0:02:58]} 10.
Nd2 {[%clk 0:02:46.3]} 10... h6 {[%clk 0:02:54.1]} 11. f3 {[%clk 0:02:45.9]}
11... O-O {[%clk 0:02:49.4]} 12. Ncb1 {[%clk 0:02:43.6]} 12... c6 {[%clk
0:02:46.7]} 13. c4 {[%clk 0:02:43.6]} 13... Nbd7 {[%clk 0:02:45.9]} 14. Nc3
{[%clk 0:02:43.8]} 14... cxd5 {[%clk 0:02:44.7]} 15. cxd5 {[%clk 0:02:43.4]}
15... a6 {[%clk 0:02:41.2]} 16. a4 {[%clk 0:02:06.3]} 16... Nh7 {[%clk
0:02:40.1]} 17. O-O {[%clk 0:02:02.5]} 17... Rc8 {[%clk 0:02:35.6]} 18. Kg2
{[%clk 0:02:00.9]} 18... Nc5 {[%clk 0:02:30.4]} 19. Nc4 {[%clk 0:01:56.6]} 19...
Bg5 {[%clk 0:02:00.4]} 20. Bg1 {[%clk 0:01:55.6]} 20... Bf4 {[%clk 0:01:57.9]}
21. Ra3 {[%clk 0:01:45.8]} 21... b5 {[%clk 0:01:38.6]} 22. axb5 {[%clk
0:01:42.4]} 22... axb5 {[%clk 0:01:38.6]} 23. Nxb5 {[%clk 0:01:42.8]} 23... Nxe4
{[%clk 0:01:38.6]} 24. fxe4 {[%clk 0:01:42.8]} 24... Bxe4+ {[%clk 0:01:38.5]}
25. Rff3 {[%clk 0:01:41]} 25... Ng5 {[%clk 0:01:12.8]} 26. Nbxd6 {[%clk
0:01:39.7]} 26... Rxc4 {[%clk 0:00:30.4]} 27. Nxc4 {[%clk 0:01:36.9]} 27... Bxd5
{[%clk 0:00:22.4]} 28. Ra5 {[%clk 0:00:59.2]} 28... Bxc4 {[%clk 0:00:15.1]} 29.
Qxd8 {[%clk 0:00:55.7]} 29... Bxe2 {[%clk 0:00:13.3]} 30. Qxf8+ {[%clk
0:00:23.7]} 30... Kxf8 {[%clk 0:00:13.3]} 31. Rc3 {[%clk 0:00:13.4]} 31... g6
{[%clk 0:00:11.1]} 32. b4 {[%clk 0:00:12.3]} 32... e4 {[%clk 0:00:09.8]} 33. b5
{[%clk 0:00:10.5]} 33... Bf3+ {[%clk 0:00:09.6]} 34. Kf1 {[%clk 0:00:10.7]}
34... Nxh3 {[%clk 0:00:05.4]} 35. Rxf3 {[%clk 0:00:09.6]} 35... exf3 {[%clk
0:00:05.1]} 36. Bd4 {[%clk 0:00:09.7]} 36... Ke7 {[%clk 0:00:04]} 37. b6 {[%clk
0:00:09.9]} 1-0

[Event "Early-Titled-Tuesday-Blitz-November-28-2023"]
[Site "Chess.com"]
[Date "2023.11.28"]
[Round "9"]
[White "DenLaz"]
[Black "IM_ArthurDW08"]
[Result "0-1"]
[WhiteElo "3019"]
[BlackElo "2809"]
[TimeControl "180+1"]
[EndTime "9:52:08 PST"]
[Termination "IM_ArthurDW08 won by resignation"]

1. d4 {[%clk 0:03:00.9]} 1... Nf6 {[%clk 0:03:00]} 2. Nf3 {[%clk 0:03:01.6]}
2... g6 {[%clk 0:03:00.8]} 3. c4 {[%clk 0:03:00.6]} 3... Bg7 {[%clk 0:03:01.2]}
4. Nc3 {[%clk 0:03:00.9]} 4... O-O {[%clk 0:03:02.1]} 5. e4 {[%clk 0:03:00.7]}
5... d6 {[%clk 0:03:03]} 6. Be2 {[%clk 0:02:59.3]} 6... e5 {[%clk 0:03:00.3]} 7.
Be3 {[%clk 0:02:59.8]} 7... Ng4 {[%clk 0:02:49]} 8. Bg5 {[%clk 0:02:59.5]} 8...
f6 {[%clk 0:02:49.7]} 9. Bh4 {[%clk 0:03:00.2]} 9... Nc6 {[%clk 0:02:49.8]} 10.
d5 {[%clk 0:02:59.1]} 10... Ne7 {[%clk 0:02:50.1]} 11. Nd2 {[%clk 0:02:59.7]}
11... f5 {[%clk 0:02:49.6]} 12. Bxg4 {[%clk 0:02:55.5]} 12... fxg4 {[%clk
0:02:50.5]} 13. Qe2 {[%clk 0:02:55.5]} 13... h6 {[%clk 0:02:39.7]} 14. Bxe7
{[%clk 0:02:50.2]} 14... Qxe7 {[%clk 0:02:40.6]} 15. O-O-O {[%clk 0:02:50.2]}
15... Bd7 {[%clk 0:02:29.8]} 16. Kb1 {[%clk 0:02:50.1]} 16... Rf7 {[%clk
0:02:26.2]} 17. f3 {[%clk 0:02:47]} 17... Raf8 {[%clk 0:02:13.9]} 18. Rhf1
{[%clk 0:02:31.9]} 18... Qh4 {[%clk 0:02:07.8]} 19. fxg4 {[%clk 0:02:15]} 19...
Qxh2 {[%clk 0:01:54.4]} 20. g5 {[%clk 0:01:54]} 20... h5 {[%clk 0:01:48]} 21.
Nf3 {[%clk 0:01:44.8]} 21... Qg3 {[%clk 0:01:39.4]} 22. c5 {[%clk 0:01:45.3]}
22... Bg4 {[%clk 0:01:35.4]} 23. cxd6 {[%clk 0:01:45.2]} 23... cxd6 {[%clk
0:01:36.3]} 24. Nb5 {[%clk 0:01:43.5]} 24... h4 {[%clk 0:01:04.3]} 25. Nxd6
{[%clk 0:01:33.9]} 25... Rf4 {[%clk 0:00:53.8]} 26. Rg1 {[%clk 0:00:14.6]} 26...
h3 {[%clk 0:00:49.2]} 27. gxh3 {[%clk 0:00:11.2]} 27... Qxf3 {[%clk 0:00:37.1]}
28. Qxf3 {[%clk 0:00:10.3]} 28... Bxf3 {[%clk 0:00:38]} 29. Rde1 {[%clk
0:00:11]} 29... b6 {[%clk 0:00:29.9]} 30. Re3 {[%clk 0:00:04.7]} 30... Rd8
{[%clk 0:00:27.4]} 31. Rg3 {[%clk 0:00:03.4]} 31... Bh1 {[%clk 0:00:22.3]} 32.
Rg1 {[%clk 0:00:03.9]} 32... Bf3 {[%clk 0:00:11.1]} 33. Rg3 {[%clk 0:00:04.3]}
33... Bh5 {[%clk 0:00:11]} 34. Nb5 {[%clk 0:00:03.2]} 34... a6 {[%clk
0:00:08.7]} 35. Nc3 {[%clk 0:00:03.5]} 35... b5 {[%clk 0:00:07.8]} 36. a3 {[%clk
0:00:04]} 36... Bf8 {[%clk 0:00:07.9]} 37. Rd3 {[%clk 0:00:04.5]} 37... b4
{[%clk 0:00:06.6]} 38. axb4 {[%clk 0:00:04.7]} 38... Bxb4 {[%clk 0:00:07.5]} 39.
Rge3 {[%clk 0:00:03.9]} 39... Rf2 {[%clk 0:00:07.2]} 40. Ka2 {[%clk 0:00:03.8]}
40... Bc5 {[%clk 0:00:07.4]} 41. Re1 {[%clk 0:00:03.8]} 41... Rb8 {[%clk
0:00:06.9]} 42. Rb1 {[%clk 0:00:03.6]} 42... Bd4 {[%clk 0:00:06.4]} 43. d6
{[%clk 0:00:03.9]} 43... Be2 {[%clk 0:00:06]} 44. Rd2 {[%clk 0:00:03.2]} 44...
Bc4+ {[%clk 0:00:06.1]} 45. Ka3 {[%clk 0:00:02.7]} 45... Rxd2 {[%clk 0:00:07]}
0-1

[Event "Early-Titled-Tuesday-Blitz-November-28-2023"]
[Site "Chess.com"]
[Date "2023.11.28"]
[Round "9"]
[White "FunnyDuck66"]
[Black "elohunter1999"]
[Result "0-1"]
[WhiteElo "2553"]
[BlackElo "2728"]
[TimeControl "180+1"]
[EndTime "9:52:10 PST"]
[Termination "elohunter1999 won on time"]

1. d4 {[%clk 0:03:00.9]} 1... f5 {[%clk 0:02:58.7]} 2. Bf4 {[%clk 0:03:00.2]}
2... Nf6 {[%clk 0:02:57.6]} 3. e3 {[%clk 0:03:00.1]} 3... g6 {[%clk 0:02:56]} 4.
Be2 {[%clk 0:02:57.1]} 4... d6 {[%clk 0:02:55.3]} 5. Nf3 {[%clk 0:02:55.9]} 5...
Bg7 {[%clk 0:02:53.9]} 6. c4 {[%clk 0:02:53.4]} 6... O-O {[%clk 0:02:46.9]} 7.
Nc3 {[%clk 0:02:52.5]} 7... Nh5 {[%clk 0:02:41]} 8. Bg3 {[%clk 0:02:50.8]} 8...
Qe8 {[%clk 0:02:36]} 9. Qb3 {[%clk 0:02:29.6]} 9... Na6 {[%clk 0:02:25.5]} 10.
c5+ {[%clk 0:02:14.1]} 10... Kh8 {[%clk 0:02:24.2]} 11. Bxa6 {[%clk 0:02:11.2]}
11... bxa6 {[%clk 0:02:23.2]} 12. O-O {[%clk 0:01:55.8]} 12... Bd7 {[%clk
0:02:21.6]} 13. Qa3 {[%clk 0:01:53.5]} 13... Nxg3 {[%clk 0:02:08.8]} 14. hxg3
{[%clk 0:01:52.9]} 14... Rb8 {[%clk 0:02:09.7]} 15. Rab1 {[%clk 0:01:46.9]}
15... Bc8 {[%clk 0:01:56.7]} 16. Rfc1 {[%clk 0:01:41.6]} 16... h6 {[%clk
0:01:55.7]} 17. Nd5 {[%clk 0:01:39.4]} 17... Qd8 {[%clk 0:01:40.7]} 18. Nh4
{[%clk 0:01:08.4]} 18... Kh7 {[%clk 0:01:38.3]} 19. Qa5 {[%clk 0:00:47.8]} 19...
g5 {[%clk 0:01:32.5]} 20. Nf3 {[%clk 0:00:46.8]} 20... Rb7 {[%clk 0:01:14.4]}
21. c6 {[%clk 0:00:46.9]} 21... Rb5 {[%clk 0:01:10.5]} 22. Qxc7 {[%clk
0:00:47.1]} 22... Rxd5 {[%clk 0:01:10]} 23. Qxa7 {[%clk 0:00:47.2]} 23... Be6
{[%clk 0:01:00.4]} 24. a4 {[%clk 0:00:44.6]} 24... Ra5 {[%clk 0:00:55.3]} 25.
Ra1 {[%clk 0:00:32.3]} 25... Qb8 {[%clk 0:00:54.5]} 26. Qxe7 {[%clk 0:00:31.3]}
26... Re8 {[%clk 0:00:51.2]} 27. c7 {[%clk 0:00:31.4]} 27... Qc8 {[%clk
0:00:46.5]} 28. Qxd6 {[%clk 0:00:31.5]} 28... Rd5 {[%clk 0:00:44.2]} 29. Qb6
{[%clk 0:00:31.5]} 29... Rd7 {[%clk 0:00:35.6]} 30. b4 {[%clk 0:00:20.1]} 30...
Bd5 {[%clk 0:00:35.3]} 31. b5 {[%clk 0:00:19.9]} 31... Re6 {[%clk 0:00:34.7]}
32. Qb8 {[%clk 0:00:18.3]} 32... Re8 {[%clk 0:00:33]} 33. Qa7 {[%clk 0:00:10.9]}
33... axb5 {[%clk 0:00:30.8]} 34. axb5 {[%clk 0:00:11.8]} 34... Qb7 {[%clk
0:00:30.3]} 35. Qxb7 {[%clk 0:00:09.5]} 35... Bxb7 {[%clk 0:00:31.2]} 36. b6
{[%clk 0:00:10]} 36... Re6 {[%clk 0:00:26.9]} 37. c8=Q {[%clk 0:00:08.1]} 37...
Bxc8 {[%clk 0:00:26.3]} 38. Rxc8 {[%clk 0:00:09]} 38... Rxb6 {[%clk 0:00:26.2]}
39. Raa8 {[%clk 0:00:06.6]} 39... Rb1+ {[%clk 0:00:24.1]} 40. Kh2 {[%clk
0:00:06.9]} 40... Rb2 {[%clk 0:00:25]} 41. Ne5 {[%clk 0:00:04.4]} 41... Bxe5
{[%clk 0:00:23.5]} 42. dxe5 {[%clk 0:00:04.7]} 42... Rxf2 {[%clk 0:00:24.1]} 43.
Rh8+ {[%clk 0:00:05]} 43... Kg6 {[%clk 0:00:23.7]} 44. Rag8+ {[%clk 0:00:05.1]}
44... Kh5 {[%clk 0:00:24]} 45. e6 {[%clk 0:00:03.1]} 45... Rdd2 {[%clk
0:00:23.9]} 46. Re8 {[%clk 0:00:04]} 46... Rxg2+ {[%clk 0:00:22.9]} 47. Kh1
{[%clk 0:00:04.5]} 47... Rge2 {[%clk 0:00:22.7]} 48. Rxh6+ {[%clk 0:00:04.7]}
48... Kg4 {[%clk 0:00:16.1]} 0-1

[Event "Early-Titled-Tuesday-Blitz-November-28-2023"]
[Site "Chess.com"]
[Date "2023.11.28"]
[Round "9"]
[White "koncheto"]
[Black "Sulthankan"]
[Result "1-0"]
[WhiteElo "2526"]
[BlackElo "2364"]
[TimeControl "180+1"]
[EndTime "9:52:10 PST"]
[Termination "koncheto won by resignation"]

1. e4 {[%clk 0:03:00.9]} 1... c5 {[%clk 0:02:53.7]} 2. Nf3 {[%clk 0:03:00.3]}
2... d6 {[%clk 0:02:54.1]} 3. d4 {[%clk 0:03:00.8]} 3... cxd4 {[%clk 0:02:55]}
4. Nxd4 {[%clk 0:03:01.7]} 4... Nf6 {[%clk 0:02:55.9]} 5. f3 {[%clk 0:03:02.5]}
5... e5 {[%clk 0:02:55.8]} 6. Nb3 {[%clk 0:03:02.5]} 6... d5 {[%clk 0:02:52.4]}
7. Bg5 {[%clk 0:03:02.3]} 7... d4 {[%clk 0:02:48.2]} 8. c3 {[%clk 0:03:02.7]}
8... Nc6 {[%clk 0:02:47.4]} 9. Bb5 {[%clk 0:03:02.3]} 9... h6 {[%clk 0:02:42.9]}
10. Bxf6 {[%clk 0:03:01.8]} 10... Qxf6 {[%clk 0:02:38.4]} 11. cxd4 {[%clk
0:03:02.7]} 11... Bb4+ {[%clk 0:02:38.1]} 12. Nc3 {[%clk 0:03:02.8]} 12... O-O
{[%clk 0:02:28.2]} 13. Bxc6 {[%clk 0:02:32.4]} 13... Qxc6 {[%clk 0:02:25.8]} 14.
Rc1 {[%clk 0:02:18]} 14... Qb6 {[%clk 0:01:52.5]} 15. O-O {[%clk 0:02:03.5]}
15... Bxc3 {[%clk 0:01:44.9]} 16. bxc3 {[%clk 0:01:57.8]} 16... Be6 {[%clk
0:01:44.2]} 17. Kh1 {[%clk 0:01:53.2]} 17... Bc4 {[%clk 0:01:39.9]} 18. Rf2
{[%clk 0:01:51.6]} 18... Rfd8 {[%clk 0:01:37.8]} 19. Rd2 {[%clk 0:01:50.3]}
19... Rac8 {[%clk 0:01:06.6]} 20. dxe5 {[%clk 0:01:14.7]} 20... Rxd2 {[%clk
0:00:55.9]} 21. Qxd2 {[%clk 0:01:15.6]} 21... Bxb3 {[%clk 0:00:52.2]} 22. Rb1
{[%clk 0:01:10]} 22... Rd8 {[%clk 0:00:38.1]} 23. Qe1 {[%clk 0:01:07.6]} 23...
Qa5 {[%clk 0:00:20.6]} 24. axb3 {[%clk 0:01:06]} 24... Qxe5 {[%clk 0:00:20.3]}
25. h3 {[%clk 0:00:56.3]} 25... Rd3 {[%clk 0:00:18.8]} 26. c4 {[%clk 0:00:40.7]}
26... Qf4 {[%clk 0:00:10.6]} 27. b4 {[%clk 0:00:31.8]} 27... Rd2 {[%clk
0:00:04.8]} 28. Rd1 {[%clk 0:00:23]} 28... Rc2 {[%clk 0:00:04.9]} 29. c5 {[%clk
0:00:20.2]} 29... Qg5 {[%clk 0:00:04.6]} 30. Qf1 {[%clk 0:00:16]} 30... Rb2
{[%clk 0:00:05.1]} 31. Rb1 {[%clk 0:00:14.8]} 31... Rc2 {[%clk 0:00:05]} 32. Ra1
{[%clk 0:00:08.7]} 32... a6 {[%clk 0:00:04.6]} 33. Rd1 {[%clk 0:00:09.3]} 33...
Rb2 {[%clk 0:00:04.6]} 34. Rd5 {[%clk 0:00:09.2]} 34... Qe3 {[%clk 0:00:03.6]}
35. Rd3 {[%clk 0:00:09]} 35... Qf4 {[%clk 0:00:03.5]} 36. Qe1 {[%clk 0:00:07.5]}
36... Rc2 {[%clk 0:00:03.2]} 37. Rc3 {[%clk 0:00:07.1]} 37... Rb2 {[%clk
0:00:03]} 38. Rc1 {[%clk 0:00:05.8]} 38... Qg5 {[%clk 0:00:01.6]} 39. Qg1 {[%clk
0:00:05.4]} 39... Qf4 {[%clk 0:00:01.7]} 40. Rb1 {[%clk 0:00:04.6]} 40... Rc2
{[%clk 0:00:01.8]} 41. Qd1 {[%clk 0:00:04.3]} 41... Rf2 {[%clk 0:00:01.1]} 42.
Qd8+ {[%clk 0:00:04.3]} 42... Kh7 {[%clk 0:00:01.2]} 43. Qd3 {[%clk 0:00:05.2]}
43... Qg3 {[%clk 0:00:01.8]} 44. Rg1 {[%clk 0:00:05.1]} 44... Rd2 {[%clk
0:00:02.2]} 45. Qxd2 {[%clk 0:00:04.8]} 45... Qf4 {[%clk 0:00:03.1]} 46. Qxf4
{[%clk 0:00:05]} 1-0